Cogmind - Beta 11 *** ADVENTURER MODE // 2022.04.07 @ 00:50:00 Player: Ms Vella Result: Destroyed by as-64049 with Assembled Heavy Rifle Performance ------------- Evolutions (0) 0 Regions Visited (0) 0 Robots Destroyed (0) 0 Value Destroyed (0) 0 Prototype IDs (0) 0 Alien Tech Used (0) 0 Bonus (0) 0 TOTAL SCORE: 0 Bonus ------- None Cogmind --------- Core Integrity 0/250 Matter 300/300 Energy 100/100 System Corruption 6% Temperature Cool (0) Movement Core (100) Ox1 Location -11/Scrapyard Parts ------- > --- POWER (1) -------- (None) > --- PROPULSION (2) --- (None) > --- UTILITY (2) ------ Small Storage Unit > --- WEAPON (2) ------- (None) > --- INVENTORY (8) ---- Light Ion Engine Medium Laser Peak State ------------ > --- POWER ------------ Light Ion Engine > --- PROPULSION ------- Aluminum Leg Aluminum Leg > --- UTILITY ---------- Small Storage Unit > --- WEAPON ----------- Assault Rifle Light Assault Rifle > --- INVENTORY -------- Ion Engine Light Treads Wheel Compact Wheel Medium Laser [Rating: 6] Favorites ----------- Power Ion Engine Engine Ion Engine Propulsion Aluminum Leg Leg Aluminum Leg Utility Small Storage Unit Storage Small Storage Unit Weapon Light Assault Rifle Ballistic Gun Light Assault Rifle Build | -11 ------- Run | Scr Slots Evolved . | . Power . | . Propulsion . | . Utility . | . Weapon . | . Parts Attached 1 | 1 Power 1 | 1 Engine 1 | 1 Core . | . Reactor . | . Propulsion . | . Treads . | . Leg . | . Wheel . | . Hover . | . Flight . | . Utility . | . Device . | . Storage . | . Processor . | . Hackware . | . Protection . | . Artifact . | . Weapon . | . Energy Gun . | . Energy Cannon . | . Ballistic Gun . | . Ballistic Cannon . | . Launcher . | . Special Weapon . | . Impact Weapon . | . Slashing Weapon . | . Piercing Weapon . | . Special Melee Weapon . | . Unidentified Prototypes . | . Parts Lost 5 | 5 Power 1 | 1 Propulsion 2 | 2 Utility . | . Weapon 2 | 2 Highest Loss Streak 5 | 5 To Critical Strikes . | . Average Slot Usage (%) . | . Naked Turns . | . Heaviest Build 13 | 13 Greatest Support 20 | 20 Greatest Overweight (x) . | . Average Overweight (x) . | . Largest Inventory Capacity 8 | 8 Average Capacity 8 | 8 Most Carried 5 | 5 Average Carried 2 | 2 Final Capacity 8 | 8 Final Carried 2 | 2 Class Distribution -------------------- None Dominant Class ---------------- None Resources | -11 ----------- Run | Scr Matter Collected 187 | 187 Remotely . | . Salvage Created . | . Parts . | . Haulers Intercepted . | . Recyclers Shooed . | . Parts Field Recycled . | . Retrieved Matter . | . Parts Self-Destructed . | . Prevented . | . Kills | -11 ------- Run | Scr Combat Hostiles Destroyed . | . Classes Destroyed . | . Best Kill Streak . | . Combat Bots Only . | . Max Kills in Single Turn . | . Gunslinging . | . Exploded . | . Melee . | . Uniques/NPCs Destroyed . | . Combat | -11 -------- Run | Scr Damage Taken 730 | 730 Core 255 | 255 Absorbed by Shields . | . Core Remaining (%) . | . Volleys Fired 2 | 2 Largest 2 | 2 Hottest 40 | 40 Shots Fired 4 | 4 Gun 4 | 4 Cannon . | . Launcher . | . Special . | . Kinetic 4 | 4 Thermal . | . Explosive . | . Electromagnetic . | . Robot Hit Streak 2 | 2 Robot Miss Streak 2 | 2 Penetration Max . | . Secondary Targets . | . Shots Hit Robots 2 | 2 Core Hits 1 | 1 Critical Kills . | . Critical Parts Destroyed . | . Critical Strikes . | . Melee Attacks . | . Impact . | . Slashing . | . Piercing . | . Sneak Attacks . | . Combat Hostiles . | . Follow-up Attacks . | . Damage Inflicted 70 | 70 Guns 39 | 39 Cannons . | . Explosions . | . Melee . | . Ramming 31 | 31 Kinetic 39 | 39 Thermal . | . Explosive . | . Electromagnetic . | . Impact . | . Slashing . | . Piercing . | . Highest Corruption 6 | 6 Average Corruption 3 | 3 Corruption Purged . | . Corruption Blocked . | . Overload Shots . | . Overflow Damage . | . Projectiles . | . Explosions . | . Melee . | . Knockbacks . | . Impact . | . Kinetic . | . Secondary . | . Self-Inflicted Damage 3 | 3 Shots . | . Rammed 3 | 3 Targets Rammed 14 | 14 Kicked 11 | 11 Crushed . | . Highest Temperature 40 | 40 Average Temperature 21 | 21 Received Heat Transfer 380 | 380 Siege Activations . | . Robots Corrupted . | . Combat Hostiles . | . Parts Fried . | . Impact Corruptions . | . Robots Melted . | . Combat Hostiles . | . Parts Melted . | . Heat Transferred . | . Parts Sabotaged . | . Parts Stolen . | . Parts Stripped . | . Power Chain Reactions . | . Missiles Intercepted . | . Alert | -11 ------- Run | Scr Peak Influence 30 | 30 Initial . | . Average . | . Maximum Alert Level . | . Low Security (%) 100 | 100 Level 1 . | . Level 2 . | . Level 3 . | . Level 4 . | . Level 5 . | . High Security . | . Max Security . | . Squads Dispatched . | . Investigation . | . Extermination . | . Reinforcement . | . Assault . | . Garrison . | . Intercept . | . Searches Triggered . | . Construction Impeded . | . Haulers Reinforced . | . Active Scanning Responses . | . Cargo Convoy Interrupts . | . Stealth | -11 --------- Run | Scr Distress Signals . | . Communications Jammed . | . Distress Signals . | . Times Spotted 22 | 22 Peak Tracking Total 20 | 20 Tactical Retreats . | . Traps | -11 ------- Run | Scr Traps Triggered . | . Indirectly . | . Trap Hack Attempts . | . Triggered . | . Disarmed . | . Reprogrammed . | . Reused . | . Traps Extracted . | . Installed . | . Triggered . | . Machines | -11 ---------- Run | Scr Machines Disabled . | . Max in Single Turn . | . Machines Sabotaged . | . Garrisons Compromised . | . Overloaded Fab Kills . | . Hacking | -11 --------- Run | Scr Machines Accessed . | . Terminals . | . Fabricators . | . Repair Stations . | . Recycling Units . | . Scanalyzers . | . Garrison Access . | . Total Hacks . | . Successful . | . Failed . | . Catastrophic . | . Database Lockouts . | . Manual . | . Terminals . | . Fabricators . | . Repair Stations . | . Recycling Units . | . Scanalyzers . | . Garrison Access . | . Terminal Hacks . | . Fabricator Hacks . | . Repair Station Hacks . | . Recycling Unit Hacks . | . Scanalyzer . | . Garrison Access Hacks . | . Unauthorized Hacks . | . Terminals . | . Fabricators . | . Repair Stations . | . Recycling Units . | . Scanalyzers . | . Garrison Access . | . Data Cores Recovered . | . Used . | . Hacking Detections . | . Full Trace Events . | . Feedback Events . | . Feedback Blocked . | . Robot Schematics Acquired . | . Robots Built . | . Authchips . | . Time . | . Total Robot Build Rating . | . Part Schematics Acquired . | . Parts Built . | . Authchips . | . Time . | . Total Part Build Rating . | . Parts Repaired . | . Time . | . Parts Recycled . | . Recycled Matter . | . Retrieved Matter . | . Retrieved Components . | . Parts Scanalyzed . | . Part Schematics Acquired . | . Parts Damaged . | . Bothacking | -11 ------------ Run | Scr Used RIF Installer . | . Robots Hacked . | . Non-combat . | . Combat . | . Robot Hacks Applied . | . Relay Couplers Released . | . Fabnet Peak Effective % . | . Robots Rewired . | . Allies Hacked . | . Hacks Repelled . | . Allies | -11 -------- Run | Scr Total Allies . | . Largest Group . | . Highest-Rated Group . | . Highest-Rated Ally . | . Total Orders . | . Ally Attacks . | . Total Damage . | . Kills . | . Allies Corrupted . | . Allies Melted . | . Intel | -11 ------- Run | Scr Robot Analysis Total . | . Derelict Logs Recovered . | . Drone Launches . | . Drone Recoveries . | . Exploration | -11 ------------- Run | Scr Turns Passed 1475 | 1475 Spaces Moved 127 | 127 Core . | . Treads . | . Legs 127 | 127 Wheels . | . Hover . | . Flight . | . Fastest Speed 120 | 120 Average Speed 120 | 120 Slowest Speed 120 | 120 Overloaded Moves . | . Propulsion Burnouts . | . Robots Hopped . | . Cave-ins Triggered . | . Exploration Rate (%) 19 | 19 Regions Visited . Branch Regions . Pre-discovered Areas . | . Known Exits Taken . | . Unknown Exits Taken . | . Scrap Searched . | . Spaces Dug . | . Terrain Destroyed . | . Melee . | . Projectile . | . AOE . | . Terrain Rammed . | . Walls Destroyed . | . Machines Disabled . | . Actions | -11 --------- Run | Scr Total 1445 | 1445 Wait 1297 | 1297 Move 127 | 127 Hop . | . Pick Up . | . Fast Attach . | . Attach . | . Detach . | . Swap 1 | 1 Drop 4 | 4 Fire 2 | 2 Melee . | . Ram 3 | 3 Kick 11 | 11 Crush . | . Escape Stasis . | . Rewire . | . Trap . | . Miscellaneous . | . Route ------- -11/Scrapyard (discovered 1 exit: [*Mat]) History --------- Turn | Location | Event 5 | -11/Scrapyard | Discovered new exit (range 3) 1438 | -11/Scrapyard | Assembled infested the area 1474 | -11/Scrapyard | Core integrity fell below 50% 1476 | -11/Scrapyard | Core integrity fell below 20% 1476 | -11/Scrapyard | Destroyed by as-64049 with Assembled Heavy Rifle Last Messages --------------- 01470_ Aluminum Leg destroyed. 01471_ Kicked as-23529 out of the way. 01471_ Ion Engine destroyed. 01471_ System corrupted by crushing effect (+2). 01472_ Assault Rifle destroyed. 01473_ Kicked as-26576. 01474_ Lgt. Assault Rifle destroyed. 01474_ Aluminum Leg destroyed. 01474_ System corrupted by crushing effect (+4). 01474_ Slammed into as-26576. 01475_ C-30 ARC bursts open, deploying its payload. 01475_ D-53 Grenadier unfolds itself. 01475_ as-83232 destroyed. 01475_ as-26576 destroyed. 01475_ as-31455 destroyed. 01475_ as-23529 destroyed. 01475_ as-12997 destroyed. 01475_ as-09906 destroyed. 01475_ as-30765 destroyed. 01476_ Slammed into as-25106. Map ----- +----------------------------------------------------+ | | | | | | | | | | | | | | | | | | | | | | | ?????????????????????????????????????????????????? | | ?????????????????????????????????????????????????? | | ?????????????????????????????????????????????????? | | ?????????????????????????????????????????????????? | | ?????????????????????????????????????????????????? | | ??????????????????????####??##???????????????????? | | ?????????????????????## "## ##??????????????????? | | ?????????????????????# " #??????????????????? | | ?????????????????????# " #??????????????????? | | ?????????????????????? " #??????????????????? | | ??????????????????????# " #??????????????????? | | ??????????????????????#a" aa ???????????????????? | | ??????????????????????# aa a#????????????????????? | | ???????????????######### aa ##???????????????????? | | ???????????????# @a #???????????????????? | | ???????????????# a ##???????????????????? | | ???????????????# aa #????????????????????? | | ???????????????# %% #????????????????????? | | ???????????????# %|##########????????????? | | ?????####??????# #=a# #????????????? | | ????## #??????# # %# #????????????? | | ????? ??????# # # #????????????? | | ?????# #??????# # # #????????????? | | ?????# #??????########## # #????????????? | | ?????# #???????????????#dd #????????????? | | ###### #################% # #????????????? | | # # #????????????? | | # # #????????????? | | ################# ##########????????????? | | # ###############?####?????????????????????? | | # # #??????????????????????????? | | # # #??????????????????????????? | | ###### # #??????????????????????????? | | ?????# # #??????????????????????????? | | ?????# # #??????????????????????????? | | ?????# #??????????????????????????? | | ###??# ###############??????????????????????????? | | ??# #????????????????????????????????????????? | | ?# #????????????????????????????????????????? | +----------------------------------------------------+ Best States ------------- Heat Dissipation 25 Energy Generation 10 Energy Capacity 250 Matter Stores 294 Matter Capacity 300 Sight Range 16 Terrain Scan Density 10 Resistance: KI 20 Resistance: TH 20 Resistance: EX 20 Resistance: EM 20 Resistance: I 20 Resistance: S 20 Resistance: P 20 Evasion (%) 55 Offensive Hacking 10 Item Schematics ----------------- None Robot Schematics ------------------ None Fabricated ------------ Nothing Alien Tech Used ----------------- None Achievements -------------- Curiosity Killed The Cat Challenges ------------ None Game ------ Seed FluxHypercooledAxe Manual? 0 Play Time 00:09:26 Cumulative 853.3 hours Start 2022.04.07 @ 00:36:36 End 2022.04.07 @ 00:50:00 Sessions 4 Manual Loads 0 Difficulty Adventurer Special Mode None Game No. 163 Rogue 1 Adventurer 162 Explorer 0 Win Type - Total 3 Types 3/0/0/0/0/0/0/0/0 Lore% 66 Gallery% 79 Achievement% 62 Wizard Run 0 Options --------- ASCII 0 Keyboard 0 Movement Mouse Keybinds 0 Fullscreen 0 Font 16/SmallcapsGlow Map View 76x50 Tactical HUD 1 Map Filters NONE Filters LOW_CONTRAST(13,24,33) Steam 1 RUN: 8bd171c5-6f18-431e-b105-182d32b4e936